bitfinex/quotes_BTCUSD_20250225
["timestamp","ask_amount","ask_price","bid_price","bid_amount"]
[1740482766166,0.1,88025.0,88023.0,0.0008493]
[1740482766335,0.03494811,88029.0,87933.0,0.00297189]
[1740482766336,0.10371649,88003.0,87933.0,0.00297189]
[1740482766562,0.1,87985.0,87933.0,0.00297189]
[1740482766743,0.21530895,87984.0,87933.0,0.00297189]
[1740482766956,0.04722895,87983.0,87933.0,0.00297189]
[1740482767130,0.03478895,87982.0,87933.0,0.00297189]
[1740482767332,0.01244,87983.0,87936.0,0.00159177]
[1740482767537,0.03472592,87982.0,87933.0,0.0933924]
[1740482768141,0.02723746,87981.0,87933.0,0.0933924]
[1740482768345,0.03472592,87980.0,87933.0,0.0933924]
[1740482768546,0.06196338,87980.0,87933.0,0.0933924]
[1740482768724,0.03472592,87979.0,87933.0,0.0933924]
[1740482768924,0.03472592,87979.0,87933.0,0.00297189]
[1740482769125,0.05270023,87979.0,87933.0,0.00297189]
[1740482769334,0.08758726,87978.0,87933.0,0.00297189]
[1740482769534,0.03472592,87977.0,87933.0,0.00297189]
[1740482769937,0.01244,87977.0,87956.0,0.0754]
[1740482770125,0.18052,87984.0,87961.0,0.00159164]
[1740482770333,0.18052,87984.0,87958.0,0.00159144]
[1740482770532,0.18052,87984.0,87960.0,0.00259146]
[1740482770731,0.01783722,87986.0,87972.0,0.09042051]
[1740482770938,0.01244,88020.0,87974.0,0.2211]
[1740482771184,0.01783394,88013.0,87981.0,0.1]
[1740482771354,0.01783394,88013.0,87975.0,0.00286812]
[1740482771569,0.01783394,88013.0,87974.0,0.1211]
[1740482771784,0.01783394,88013.0,87976.0,0.00286812]
[1740482771983,0.01783394,88013.0,87974.0,0.1211]
[1740482771984,0.03469881,88012.0,87974.0,0.1211]
[1740482772211,0.03469881,88012.0,87975.0,0.01378622]
[1740482772530,0.0178335,88003.0,87976.0,0.00286812]
[1740482774494,0.0178335,88003.0,87977.0,0.00159131]
[1740482774883,0.0178335,88003.0,87978.0,0.00315493]
[1740482775319,0.09042051,88023.0,87979.0,0.00159094]
[1740482775769,0.01782927,88014.0,87980.0,0.00286812]
[1740482776090,0.01782927,88014.0,87981.0,0.00159094]
[1740482776248,0.09970214,88008.0,87981.0,0.10159094]
[1740482776453,0.09970214,88008.0,87982.0,0.00287207]
[1740482776853,0.09042051,88005.0,87982.0,0.00287207]
[1740482777240,0.09042051,88005.0,87976.0,0.0008494]
[1740482777241,0.01783084,88002.0,87976.0,0.0008494]
[1740482777631,0.03480507,88001.0,87977.0,0.00270679]
[1740482777986,0.07349451,87998.0,87953.0,0.12650549]
[1740482778194,0.07349451,87998.0,87954.0,0.01424183]
[1740482778411,0.07349451,87989.0,87954.0,0.00159128]
[1740482778610,0.07349451,87983.0,87945.0,0.00159145]
[1740482778929,0.07349451,87983.0,87938.0,0.02650549]
[1740482778930,0.07349451,87983.0,87946.0,0.00260356]
[1740482779368,0.01783368,87988.0,87949.0,0.1]
[1740482779569,0.01783368,87988.0,87957.0,0.1]
[1740482779714,0.01783368,87988.0,87958.0,0.01159122]
[1740482779919,0.01783368,87988.0,87958.0,0.01420262]
[1740482780326,0.01783368,87988.0,87958.0,0.00420262]
[1740482780525,0.09042051,87977.0,87958.0,0.0026114]
[1740482780726,0.09042051,87977.0,87936.0,0.00159161]
[1740482780929,0.07349451,87972.0,87935.0,0.013151]
[1740482781094,0.09132988,87969.0,87945.0,0.0024927]
[1740482781493,0.07349451,87969.0,87935.0,0.013151]
[1740482781731,0.07349451,87965.0,87935.0,0.013151]
[1740482783670,0.07349451,87959.0,87935.0,0.013151]
[1740482784653,0.07349451,87954.0,87935.0,0.013151]
[1740482784853,0.07349451,87945.0,87935.0,0.013151]
[1740482785269,0.07349451,87947.0,87935.0,0.013151]
[1740482785451,0.07349451,87945.0,87935.0,0.013151]
[1740482785830,0.09133537,87945.0,87935.0,0.013151]
[1740482787066,0.07349451,87945.0,87935.0,0.013151]
[1740482788001,0.07349451,87945.0,87944.0,0.0508504]
[1740482788413,0.07349451,87945.0,87944.0,0.05340894]
[1740482789870,0.01244,87953.0,87944.0,0.05340894]
[1740482790076,0.09133519,87945.0,87944.0,0.05340894]
[1740482790324,0.01784068,87945.0,87944.0,0.0508504]
[1740482790561,0.09133519,87945.0,87944.0,0.0508504]
[1740482790731,0.01784068,87945.0,87944.0,0.05332526]
[1740482790905,0.01784068,87945.0,87944.0,0.0508504]
[1740482791087,0.09970214,87949.0,87944.0,0.0508504]
[1740482791433,0.09970214,87949.0,87945.0,0.00247256]
[1740482791843,0.09970214,87949.0,87945.0,0.00159171]
[1740482792042,0.09970214,87949.0,87946.0,0.00247256]
[1740482792351,0.09970214,87949.0,87944.0,0.0508504]
[1740482792486,0.09970214,87949.0,87947.0,0.00246981]
[1740482792682,0.09970214,87949.0,87944.0,0.0508504]
[1740482792887,0.09970214,87949.0,87945.0,0.00246139]
[1740482793093,0.09970214,87949.0,87944.0,0.0508504]
[1740482793299,0.09970214,87949.0,87946.0,0.00246139]
[1740482793500,0.09970214,87949.0,87944.0,0.0508504]
[1740482793705,0.09970214,87949.0,87947.0,0.00246139]
[1740482793928,0.09970214,87949.0,87945.0,0.00159173]
[1740482794144,0.09970214,87959.0,87948.0,0.00270753]
[1740482794431,0.09970214,87959.0,87944.0,0.0508504]
[1740482795592,0.09970214,87959.0,87945.0,0.00246139]
[1740482795818,0.09970214,87959.0,87944.0,0.0508504]
[1740482795819,0.09970214,87959.0,87946.0,0.00159164]
[1740482796047,0.09970214,87959.0,87947.0,0.1]
[1740482796251,0.09970214,87959.0,87947.0,0.00270753]
[1740482796579,0.09970214,87959.0,87944.0,0.0508504]
[1740482796775,0.09970214,87959.0,87948.0,0.00246139]
[1740482796977,0.09970214,87959.0,87944.0,0.0508504]
[1740482796978,0.09970214,87959.0,87949.0,0.0015916]
[1740482797176,0.09970214,87959.0,87949.0,0.00246139]
[1740482797424,0.09970214,87959.0,87947.0,0.1]
[1740482797598,0.09970214,87959.0,87950.0,0.00246139]
[1740482797933,0.09970214,87959.0,87951.0,0.00402975]
[1740482798144,0.09970214,87959.0,87951.0,0.00243823]
[1740482798384,0.25,87980.0,87944.0,0.0508504]
[1740482798385,0.09970214,87967.0,87944.0,0.0508504]
[1740482798586,0.09042051,87965.0,87944.0,0.0508504]
[1740482798705,0.32349451,87964.0,87944.0,0.0508504]
[1740482798900,0.32349451,87964.0,87945.0,0.00159172]
[1740482799112,0.25,87964.0,87945.0,0.10159172]
[1740482799311,0.25,87964.0,87948.0,0.1]
[1740482799535,0.25,87964.0,87949.0,0.00159146]
[1740482800049,0.25,87964.0,87950.0,0.00159146]
[1740482800253,0.25,87964.0,87951.0,0.0024296]
[1740482800453,0.25,87966.0,87947.0,0.10159147]
[1740482800657,0.0017008,87959.0,87948.0,0.0024296]
[1740482800872,0.0017008,87959.0,87949.0,0.00159145]
[1740482801225,0.0017008,87959.0,87950.0,0.0024296]
[1740482801427,0.0017008,87959.0,87946.0,0.1]
[1740482801726,0.0017008,87959.0,87947.0,0.0024296]
[1740482802152,0.0017008,87959.0,87947.0,0.00402105]
[1740482802359,0.0017008,87959.0,87958.0,0.1]
[1740482802558,0.09970214,87971.0,87968.0,0.1]
[1740482802917,0.09970214,87971.0,87965.0,0.1]
[1740482803054,0.09970214,87971.0,87969.0,0.00267256]
[1740482803255,0.09970214,87971.0,87965.0,0.1]
[1740482803477,0.09970214,87971.0,87966.0,0.00267256]
[1740482803874,0.09970214,87971.0,87958.0,0.1]
[1740482804075,0.09970214,87971.0,87962.0,0.1]
[1740482804355,0.09970214,87971.0,87968.0,0.1]
[1740482804531,0.09970214,87971.0,87963.0,0.00230812]
[1740482804724,0.09970214,87971.0,87955.0,0.00159129]
[1740482804929,0.09970214,87971.0,87964.0,0.00230812]
[1740482805085,0.09970214,87971.0,87959.0,0.00159129]
[1740482805289,0.09970214,87971.0,87960.0,0.00244393]
[1740482805657,0.09970214,87971.0,87961.0,0.00159129]
[1740482805852,0.09970214,87985.0,87960.0,0.00244393]
[1740482806010,0.34042051,87984.0,87961.0,0.00159116]
[1740482806207,0.03497661,87983.0,87961.0,0.00244393]
[1740482806416,0.28497661,87983.0,87955.0,0.00159126]
[1740482806611,0.25,87983.0,87955.0,0.02891965]
[1740482806817,0.25,87983.0,87956.0,0.00244393]
[1740482807038,0.25,87983.0,87957.0,0.00159125]
[1740482807573,0.25,87984.0,87974.0,0.1]
[1740482807718,0.25,87984.0,87959.0,0.02650549]
[1740482807719,0.25,87984.0,87975.0,0.0767]
[1740482808089,0.25,87984.0,87975.0,0.07912803]
[1740482808285,0.25,87984.0,87978.0,0.1]
[1740482808430,0.25,87984.0,87978.0,0.0481]
[1740482808630,0.25,87984.0,87979.0,0.00242803]
[1740482808870,0.09970214,87982.0,87979.0,0.00242803]
[1740482809274,0.09970214,87982.0,87978.0,0.0481]
[1740482809893,0.09970214,87982.0,87969.0,0.1]
[1740482810116,0.09970214,87982.0,87970.0,0.00242803]
[1740482810426,0.09970214,87982.0,87971.0,0.00159119]
[1740482810928,0.09970214,87982.0,87978.0,0.1]
[1740482811136,0.09970214,87982.0,87979.0,0.00159101]
[1740482811336,0.09970214,87982.0,87980.0,0.0782]
[1740482811476,0.09970214,87982.0,87980.0,0.08062803]
[1740482811677,0.09970214,87982.0,87981.0,0.10159101]
[1740482811907,0.10139794,87982.0,87981.0,0.12809617]
[1740482812103,0.0016958,87982.0,87981.0,0.04839733]
[1740482813008,0.0016958,87982.0,87981.0,0.00239733]
[1740482813429,0.0016958,87982.0,87981.0,0.00239585]
[1740482813622,0.0016958,87982.0,87971.0,0.0794]
[1740482813623,0.0016958,87982.0,87972.0,0.00159102]
[1740482813826,0.0016958,87982.0,87973.0,0.00239585]
[1740482814229,0.0016958,87982.0,87969.0,0.1]
[1740482814432,0.0016958,87982.0,87970.0,0.00239454]
[1740482814816,0.0016958,87982.0,87970.0,0.00398556]
[1740482815015,0.03759913,87991.0,87971.0,0.01532856]
[1740482815276,0.03759913,87991.0,87972.0,0.00159097]
[1740482815478,0.03759913,87991.0,87980.0,0.1]
[1740482815633,0.03759913,87991.0,87981.0,0.0023989]
[1740482815837,0.03759913,87991.0,87971.0,0.01532856]
[1740482816157,0.25,87999.0,87972.0,0.02045022]
[1740482816158,0.33873377,87999.0,87972.0,0.02045022]
[1740482816541,0.33873377,87999.0,87972.0,0.01805378]
[1740482817417,0.33873377,87999.0,87978.0,0.1]
[1740482817418,0.24831326,87999.0,87978.0,0.1]
[1740482817642,0.24831326,87999.0,87979.0,0.00159085]
[1740482818951,5.0,88000.0,87987.0,0.1]
[1740482819173,5.0,88000.0,87988.0,0.00159076]
[1740482819296,5.0,88000.0,87988.0,0.04919076]
[1740482819517,5.0,88000.0,87988.0,0.0476]
[1740482820321,0.09042051,87997.0,87987.0,0.00159076]
[1740482820522,0.09042051,87997.0,87974.0,0.00159078]
[1740482820764,0.09042051,87997.0,87975.0,0.01495908]
[1740482820948,0.09042051,87997.0,87976.0,0.00159096]
[1740482821143,5.0,88000.0,87977.0,0.1]
[1740482821355,5.0,88000.0,87979.0,0.1]
[1740482821587,0.25,87999.0,87980.0,0.00159083]
[1740482821822,0.25,87999.0,87981.0,0.04400499]
[1740482822066,0.25,87999.0,87982.0,0.00159084]
[1740482822513,5.0,88000.0,87986.0,0.1]
[1740482822789,5.0,88000.0,87981.0,0.04400499]
[1740482822790,5.0,88000.0,87998.0,0.1]
[1740482823032,5.0,88000.0,87987.0,0.95059077]
[1740482823033,5.0,88000.0,87999.0,0.9663]
[1740482823235,5.0,88000.0,87999.0,1.0119]
[1740482823554,5.0,88000.0,87999.0,0.91473753]
[1740482823964,5.0,88000.0,87999.0,0.9119]
[1740482824177,5.0,88000.0,87999.0,1.01442225]
[1740482827156,4.7676,88000.0,87999.0,0.99532774]
[1740482827360,4.21682598,88000.0,87999.0,1.78692774]
[1740482827771,4.21682598,88000.0,87999.0,1.9007847]
[1740482828610,4.21682598,88000.0,87999.0,1.5507847]
[1740482828824,4.21682598,88000.0,87999.0,0.96882225]
[1740482829406,4.21682598,88000.0,87999.0,0.86882225]
[1740482830827,4.21682598,88000.0,87999.0,0.32602225]
[1740482831034,4.46682598,88000.0,87999.0,0.00252225]
[1740482831234,0.25,87999.0,87986.0,0.3235]
[1740482831817,0.09042051,87998.0,87986.0,0.3235]
[1740482833040,0.25,87999.0,87986.0,0.3235]
[1740482833240,0.25,87999.0,87987.0,0.10159087]
[1740482833452,0.25,87999.0,87988.0,0.00250654]
[1740482833653,4.21682598,88000.0,87991.0,0.1]
[1740482834007,4.21682598,88000.0,87992.0,0.32509071]
[1740482834179,4.21682598,88000.0,87992.0,0.3235]
[1740482834581,0.25,87999.0,87992.0,0.3235]
[1740482835202,0.251695,87999.0,87992.0,0.3235]
[1740482835363,0.251695,87999.0,87993.0,0.00159075]
[1740482835567,0.251695,87999.0,87993.0,0.10159075]
[1740482835767,0.251695,87999.0,87992.0,0.3235]
[1740482837030,0.251695,87999.0,87992.0,0.32354]
[1740482838360,0.251695,87999.0,87992.0,4e-05]
[1740482838573,0.0753,87998.0,87992.0,4e-05]
[1740482839977,0.0472,87997.0,87992.0,4e-05]
[1740482841296,0.28519343,87996.0,87992.0,4e-05]
[1740482841466,0.07349451,87993.0,87992.0,4e-05]
[1740482842283,0.35869718,87993.0,87992.0,4e-05]
[1740482842878,0.32349451,87993.0,87992.0,4e-05]
[1740482843100,0.25,87993.0,87992.0,4e-05]
[1740482843422,0.0178313,87996.0,87992.0,4e-05]
[1740482843638,0.0472,87997.0,87992.0,4e-05]
[1740482843852,0.01129524,87998.0,87992.0,0.32354]
[1740482844028,0.01129524,87998.0,87993.0,0.13394476]
[1740482844245,0.01129524,87998.0,87993.0,0.032354]
[1740482844704,0.01129524,87998.0,87992.0,0.32354]
[1740482845093,0.01129524,87998.0,87993.0,0.00159074]
[1740482845304,0.01129524,87998.0,87993.0,0.10159074]
[1740482845498,0.01129524,87998.0,87993.0,0.1]
[1740482845705,0.01129524,87998.0,87994.0,0.00159069]
[1740482846001,0.01129524,87998.0,87992.0,0.32354]
[1740482847122,0.01129524,87998.0,87992.0,0.465894]
[1740482847319,0.01129524,87998.0,87997.0,0.1]
[1740482847527,0.01129524,87998.0,87997.0,0.10406999]
[1740482847745,4.21558927,88000.0,87999.0,0.1]
[1740482847948,4.21728427,88000.0,87999.0,0.1]
[1740482848177,4.21728427,88000.0,87999.0,1.0703157]
[1740482848352,4.21728427,88000.0,87999.0,1.09928276]
[1740482848952,4.21728427,88000.0,87999.0,1.10397913]
[1740482849592,4.21728427,88000.0,87999.0,1.10401913]
[1740482850410,4.21728427,88000.0,87999.0,0.56121913]
[1740482850551,4.21728427,88000.0,87999.0,0.54626076]
[1740482851014,4.21728427,88000.0,87999.0,0.54630076]
[1740482854905,4.21728427,88000.0,87999.0,0.44928506]
[1740482855145,4.21728427,88000.0,87999.0,0.44228506]
[1740482855414,4.21728427,88000.0,87999.0,0.44928506]
[1740482856674,4.21728427,88000.0,87999.0,0.99208506]
[1740482856908,4.02318155,88000.0,87999.0,0.99748506]
[1740482857077,4.02418155,88000.0,87999.0,1.10856172]
[1740482857226,4.02337437,88000.0,87999.0,1.10856172]
[1740482857443,4.02337437,88000.0,87999.0,1.10156172]
[1740482857645,4.02437437,88000.0,87999.0,1.06965623]
[1740482857847,4.02337437,88000.0,87999.0,1.08916172]
[1740482858253,4.02437437,88000.0,87999.0,1.09616172]
[1740482858454,4.02437437,88000.0,87999.0,1.08916172]
[1740482858455,4.02237437,88000.0,87999.0,1.08916172]
[1740482858901,3.65876304,88000.0,87999.0,2.37471772]
[1740482859057,3.65876304,88000.0,87999.0,2.20426172]
[1740482859264,3.62456789,88000.0,87999.0,2.37471772]
[1740482859460,3.58871081,88000.0,87999.0,2.37471772]
[1740482859777,3.5524789,88000.0,87999.0,2.37471772]
[1740482859960,3.51928375,88000.0,87999.0,2.91210922]
[1740482860163,3.4850886,88000.0,87999.0,3.08256522]
[1740482860369,3.4840886,88000.0,87999.0,3.07556522]
[1740482860580,3.44989345,88000.0,87999.0,3.07556522]
[1740482860823,3.4166983,88000.0,87999.0,3.08256522]
[1740482861040,3.38250315,88000.0,87999.0,3.08256522]
[1740482861254,3.348308,88000.0,87999.0,3.08256522]
[1740482861448,3.347308,88000.0,87999.0,3.07556522]
[1740482861743,3.2799177,88000.0,87999.0,3.08256522]
[1740482862147,3.24572255,88000.0,87999.0,3.08256522]
[1740482862356,3.2115274,88000.0,87999.0,3.11372458]
[1740482862544,3.17733225,88000.0,87999.0,3.08256522]
[1740482862710,3.07208789,88000.0,87999.0,3.20226522]
[1740482862968,2.59479406,88000.0,87999.0,3.21944792]
[1740482863181,2.56059891,88000.0,87999.0,3.21944792]
[1740482863379,2.52640376,88000.0,87999.0,3.19528856]
[1740482863665,2.12909724,88000.0,87999.0,3.34019545]
[1740482863884,2.0912834,88000.0,87999.0,3.80903609]
[1740482864084,2.0912834,88000.0,87999.0,3.80203609]
[1740482864306,2.05711356,88000.0,87999.0,3.80203609]
[1740482864517,2.02294372,88000.0,87999.0,3.80903609]
[1740482864797,1.98470388,88000.0,87999.0,3.82503922]
[1740482864974,1.95053404,88000.0,87999.0,3.83203922]
[1740482865172,1.9163642,88000.0,87999.0,3.83203922]
[1740482865580,1.87439436,88000.0,87999.0,3.83203922]
[1740482865781,1.84022452,88000.0,87999.0,3.83203922]
[1740482865985,1.80605468,88000.0,87999.0,3.83203922]
[1740482866184,1.80605468,88000.0,87999.0,3.82503922]
[1740482866385,1.77188484,88000.0,87999.0,3.83743922]
[1740482866607,1.77188484,88000.0,87999.0,3.84443922]
[1740482866800,1.77188484,88000.0,87999.0,3.73069169]
[1740482866983,1.77188484,88000.0,87999.0,3.73769169]
[1740482867184,1.737715,88000.0,87999.0,3.56723569]
[1740482867546,1.70354516,88000.0,87999.0,3.72369169]
[1740482867680,1.66937532,88000.0,87999.0,3.73069169]
[1740482867884,1.34587532,88000.0,87999.0,3.0711302]
[1740482868087,1.34587532,88000.0,87999.0,3.0835302]
[1740482868654,1.34587532,88000.0,87999.0,2.22869769]
[1740482868863,1.34587532,88000.0,87999.0,2.2919302]
[1740482869078,1.34587532,88000.0,87999.0,1.84103569]
[1740482869273,1.34587532,88000.0,87999.0,1.84803569]
[1740482869566,1.34587532,88000.0,87999.0,1.69833256]
[1740482869791,1.34587532,88000.0,87999.0,1.65942707]
[1740482869915,1.34587532,88000.0,87999.0,0.99293256]
[1740482870158,1.73839761,88000.0,87999.0,0.09312707]
[1740482870361,1.73839761,88000.0,87999.0,0.0906655]
[1740482871225,1.73839761,88000.0,87999.0,0.0976655]
[1740482871393,1.72307532,88000.0,87999.0,0.0976655]
[1740482872390,1.72307532,88000.0,87999.0,0.0906655]
[1740482872808,1.73839396,88000.0,87999.0,0.0906655]
[1740482873111,1.73839396,88000.0,87999.0,0.0009275]
[1740482873314,0.25,87999.0,87992.0,0.0009275]
[1740482873496,0.3328,87993.0,87992.0,0.0009275]
[1740482874923,0.3328,87993.0,87961.0,0.02650549]
[1740482874924,0.0793,87991.0,87976.0,0.00159093]
[1740482875120,0.0793,87991.0,87963.0,0.089738]
[1740482875121,0.0454,87990.0,87964.0,0.00159099]
[1740482876007,0.0454,87990.0,87976.0,0.003]
[1740482876226,0.05373618,87977.0,87976.0,0.003]
[1740482876525,0.05373618,87977.0,87957.0,0.089738]
[1740482876743,0.05373618,87977.0,87975.0,0.0048475]
[1740482877501,0.05373618,87977.0,87976.0,0.004]
[1740482878035,0.07349451,87993.0,87976.0,0.004]
[1740482878244,0.0751,87992.0,87976.0,0.004]
[1740482878458,0.0751,87992.0,87959.0,0.0008479]
[1740482878459,0.0811,87976.0,87959.0,0.00243895]
[1740482878699,0.0811,87976.0,87959.0,0.0008479]
[1740482878851,0.0811,87976.0,87960.0,0.0024118]
[1740482879296,0.0811,87976.0,87961.0,0.00159129]
[1740482880283,0.0811,87976.0,87960.0,0.00159135]
[1740482880457,0.0861,87976.0,87960.0,0.00159135]
[1740482880658,0.32349451,87973.0,87937.0,0.28026146]
[1740482880868,0.0811,87954.0,87937.0,0.36999946]
[1740482881211,0.2972,87953.0,87938.0,0.00159158]
[1740482881398,0.2972,87953.0,87945.0,0.00159158]
[1740482881805,0.2972,87953.0,87946.0,0.0024099]
[1740482881966,0.2972,87953.0,87947.0,0.00159155]
[1740482882954,0.2972,87953.0,87927.0,0.089738]
[1740482883151,0.0823,87929.0,87925.0,0.26467709]
[1740482883356,0.2988,87928.0,87912.0,0.21812709]
[1740482883981,0.2988,87928.0,87913.0,0.09039812]
[1740482884194,0.2988,87928.0,87913.0,0.00066012]
[1740482884395,0.2988,87928.0,87904.0,0.0008475]
[1740482884396,0.03811,87927.0,87904.0,0.0008475]
[1740482884641,0.03811,87927.0,87912.0,0.00366051]
[1740482884953,0.38809877,87928.0,87904.0,0.00150802]
[1740482885170,0.31460426,87928.0,87912.0,0.0006605]
[1740482885403,0.31460426,87928.0,87918.0,0.089738]
[1740482885404,0.2988,87928.0,87918.0,0.089738]
[1740482885545,0.2988,87928.0,87919.0,0.00065999]
[1740482885932,0.32183084,87928.0,87904.0,0.0008475]
[1740482886173,0.2988,87928.0,87904.0,0.0008475]
[1740482887154,0.09122846,87912.0,87904.0,0.0008475]
[1740482887330,0.38802846,87912.0,87904.0,0.0008475]
[1740482889532,0.38902846,87912.0,87904.0,0.0008475]
[1740482889784,0.38802846,87912.0,87904.0,0.0008475]
[1740482890217,0.39202846,87912.0,87904.0,0.0008475]
[1740482890426,0.38802846,87912.0,87904.0,0.0008475]
[1740482892643,0.38802846,87912.0,87908.0,0.089738]
[1740482892876,0.1275,87929.0,87916.0,0.089738]
[1740482893083,0.00859392,87921.0,87911.0,0.2211778]
[1740482893284,0.00859392,87921.0,87911.0,0.21897459]
[1740482893488,0.00859392,87921.0,87912.0,0.00219573]
[1740482894333,0.00859392,87921.0,87916.0,0.0008481]
[1740482894736,0.00859392,87921.0,87917.0,0.00219542]
[1740482895219,0.00859392,87921.0,87911.0,0.21897459]
[1740482895455,0.00859392,87921.0,87918.0,0.00219542]
[1740482895661,0.00859392,87921.0,87911.0,0.21897459]
[1740482895978,0.00859392,87921.0,87919.0,0.00219542]
[1740482896114,0.25,87928.0,87920.0,0.00219542]
[1740482896318,0.00844071,87926.0,87920.0,0.00219542]
[1740482896524,0.00844071,87926.0,87916.0,4e-05]
[1740482897260,0.1275,87929.0,87916.0,4e-05]
[1740482897261,0.07418393,87929.0,87916.0,4e-05]
[1740482897470,0.00849035,87917.0,87911.0,0.05301776]
[1740482897673,0.07349451,87916.0,87911.0,0.05301776]
[1740482897849,0.00819849,87915.0,87911.0,0.05301776]
[1740482898052,0.07349451,87914.0,87911.0,0.05301776]
[1740482899277,0.07327802,87914.0,87911.0,0.05301776]
[1740482900275,0.3751,87913.0,87911.0,0.05301776]
[1740482900938,0.07327802,87911.0,87873.0,0.413238]
[1740482901135,0.07796,87888.0,87887.0,0.00735305]
[1740482902141,0.07796,87888.0,87857.0,0.0905855]
[1740482902341,0.25,87887.0,87858.0,0.089738]
[1740482902582,0.25,87887.0,87862.0,0.089738]
[1740482902774,0.25,87887.0,87858.0,0.3235]
[1740482902775,0.25,87887.0,87871.0,0.089738]
[1740482903205,0.24996,87887.0,87871.0,0.089738]
[1740482903403,0.07796,87888.0,87871.0,0.089738]
[1740482904260,0.07796,87888.0,87860.0,0.02672198]
[1740482904261,0.00841553,87897.0,87872.0,0.3235]
[1740482904987,0.00841553,87897.0,87873.0,0.089738]
[1740482905118,0.02985141,87896.0,87872.0,0.3235]
[1740482905329,0.02985141,87896.0,87871.0,4e-05]
[1740482905330,0.07327802,87890.0,87871.0,4e-05]
[1740482905575,0.07327802,87888.0,87871.0,4e-05]
[1740482905783,0.07327802,87888.0,87872.0,0.0008483]
[1740482905929,0.07327802,87884.0,87872.0,0.0008483]
[1740482906134,0.00856449,87873.0,87872.0,0.0008483]
[1740482906744,0.089954,87887.0,87872.0,0.0008483]
[1740482906945,0.010262,87877.0,87872.0,0.0008483]
[1740482907174,0.00842152,87873.0,87872.0,0.0008483]
[1740482909355,0.0778,87902.0,87874.0,0.089738]
[1740482909614,0.0778,87902.0,87872.0,0.0008483]
[1740482909615,0.0778,87902.0,87878.0,0.089738]
[1740482909864,0.0778,87902.0,87880.0,0.089738]
[1740482910157,0.08558,87902.0,87880.0,0.089738]
[1740482910388,0.0778,87902.0,87880.0,0.089738]
[1740482910609,0.0799,87920.0,87889.0,0.089738]
[1740482910852,0.0799,87920.0,87881.0,0.01454085]
[1740482910853,0.0799,87920.0,87890.0,0.089738]
[1740482911096,0.0799,87920.0,87896.0,0.089738]
[1740482912011,0.10087491,87929.0,87906.0,0.089738]
[1740482912216,0.10087491,87929.0,87897.0,0.3235]
[1740482912217,0.0799,87931.0,87902.0,0.086738]
[1740482912417,0.0799,87931.0,87903.0,0.01454085]
[1740482912960,0.0799,87931.0,87897.0,0.410238]
[1740482912961,0.00860667,87922.0,87898.0,0.086738]
[1740482913150,0.00860667,87922.0,87897.0,0.3235]
[1740482915287,0.00860667,87922.0,87899.0,0.086738]
[1740482915488,0.00860667,87922.0,87897.0,0.3235]
[1740482915489,0.00860667,87922.0,87902.0,0.086738]
[1740482915888,0.00860667,87922.0,87907.0,0.086738]
[1740482916534,0.00860667,87922.0,87901.0,0.01454085]
[1740482916717,0.00860667,87922.0,87898.0,0.3235]
[1740482916913,0.07020965,87931.0,87900.0,0.086738]
[1740482917505,0.00855704,87919.0,87898.0,0.3235]
[1740482917704,0.00855704,87919.0,87878.0,0.0124]
[1740482917705,0.00855704,87919.0,87887.0,0.086738]
[1740482917902,0.0492,87916.0,87879.0,0.3235]
[1740482918102,0.04912466,87916.0,87879.0,0.3235]
[1740482918507,0.00840981,87894.0,87879.0,0.3235]
[1740482918707,0.00840981,87894.0,87872.0,0.0008483]
[1740482919661,0.00840981,87894.0,87872.0,0.0007483]
[1740482920819,0.00840981,87894.0,87873.0,0.01495835]
[1740482921501,0.0789,87901.0,87873.0,0.01495835]
[1740482921732,0.0789,87901.0,87873.0,0.33845835]
[1740482922295,0.0789,87901.0,87874.0,0.01495789]
[1740482922990,0.00847133,87896.0,87874.0,0.01495789]
[1740482923192,0.10087491,87921.0,87874.0,0.01495789]
[1740482923397,0.37702466,87916.0,87877.0,0.1]
[1740482923565,0.37702466,87916.0,87878.0,0.1]
[1740482923761,0.00862285,87902.0,87878.0,0.1]
[1740482924258,0.37702466,87916.0,87889.0,0.1]
[1740482924259,0.00864425,87912.0,87889.0,0.1]
[1740482924466,0.10087491,87918.0,87891.0,0.1]
[1740482924727,0.10079954,87918.0,87892.0,0.38845835]
[1740482924894,0.10079954,87918.0,87894.0,0.1]
[1740482925471,0.10079954,87918.0,87892.0,0.28845835]
[1740482926290,0.18052077,87917.0,87892.0,0.28845835]
[1740482926493,0.16942051,87917.0,87892.0,0.23845835]
[1740482926739,0.25,87916.0,87892.0,0.23845835]
[1740482927401,0.079,87917.0,87892.0,0.23845835]
[1740482927520,0.10079954,87918.0,87892.0,0.23845835]
[1740482927733,0.10079954,87918.0,87893.0,0.11454085]
[1740482927933,0.00850642,87919.0,87893.0,0.11454085]
[1740482929162,0.00850642,87919.0,87901.0,0.01454085]
[1740482929391,0.01465333,87931.0,87911.0,0.01454085]
[1740482929560,0.01465333,87931.0,87911.0,0.2529992]
[1740482930101,0.01465333,87931.0,87921.0,0.11454085]
[1740482930316,0.0775,87965.0,87921.0,0.3529992]
[1740482930317,0.00876189,87954.0,87921.0,0.3529992]
[1740482930864,0.01464804,87931.0,87921.0,0.3529992]
[1740482931104,0.00876189,87954.0,87921.0,0.3529992]
[1740482931496,0.00876189,87954.0,87921.0,0.4529992]
[1740482931688,0.00876189,87954.0,87921.0,1.0758992]
[1740482932167,0.09042051,87961.0,87921.0,1.0758992]
[1740482932367,0.01783254,88006.0,87952.0,0.1]
[1740482932368,0.0765,88005.0,87952.0,0.1]
[1740482932700,0.00869172,87979.0,87952.0,0.4529992]
[1740482932911,0.0765,88005.0,87952.0,0.9957992]
[1740482933111,0.00867974,87986.0,87952.0,1.0162992]
[1740482935015,0.01508076,87986.0,87952.0,1.0162992]
[1740482935221,0.0765,88005.0,87952.0,1.0162992]
[1740482935423,0.01466275,87992.0,87952.0,1.0162992]
[1740482935628,0.25,87991.0,87952.0,1.0162992]
[1740482935965,0.0461,88006.0,87977.0,0.1]
[1740482936166,0.0461,88006.0,87978.0,0.2529992]
[1740482937290,0.01471174,87995.0,87978.0,0.2529992]
[1740482937750,0.25,87998.0,87978.0,0.2529992]
[1740482937992,0.25,87998.0,87978.0,0.2029992]
[1740482938703,0.25,87998.0,87981.0,0.1]
[1740482938863,0.25,87999.0,87981.0,0.1]
[1740482939226,0.25,87999.0,87983.0,0.1]
[1740482939598,1.34587532,88000.0,87987.0,0.1]
[1740482940238,1.34587532,88000.0,87994.0,0.1]
[1740482941357,1.34587532,88000.0,87999.0,0.36454085]